bitfinex/quotes_SOLUSD_20220207
["timestamp","ask_amount","ask_price","bid_price","bid_amount"]
[1644204570351,0.25,117.41,117.26,16.26]
[1644204570552,0.25,117.41,117.26,23.8216778]
[1644204570754,0.25,117.41,117.26,19.5616778]
[1644204570954,10.51,117.41,117.26,13.96340751]
[1644204571152,44.79603018,117.4,117.26,45.34732472]
[1644204571456,44.79603018,117.4,117.26,44.94559501]
[1644204571653,44.79603018,117.4,117.27,10.5313]
[1644204571855,44.79603018,117.4,117.27,6.2703]
[1644204572054,44.79603018,117.4,117.28,17.8226778]
[1644204572252,27.7534075,117.4,117.28,32.63603946]
[1644204572453,27.7534075,117.4,117.29,31.08370459]
[1644204572653,47.7317,117.44,117.3,4.26]
[1644204572856,47.7317,117.44,117.31,16.52817]
[1644204573053,47.7317,117.44,117.31,38.63503946]
[1644204573252,47.7317,117.44,117.31,50.90320946]
[1644204573453,47.7317,117.44,117.31,25.8298478]
[1644204573652,57.9917,117.44,117.31,12.26817]
[1644204574059,53.7317,117.44,117.31,12.26817]
[1644204574353,39.03901282,117.43,117.32,15.77234361]
[1644204574556,39.03901282,117.43,117.32,21.77234361]
[1644204574755,39.03901282,117.43,117.33,38.63503946]
[1644204575156,39.03901282,117.43,117.33,29.8216778]
[1644204575757,39.03901282,117.43,117.33,23.8216778]
[1644204576160,39.03901282,117.43,117.33,10.26]
[1644204578062,39.03901282,117.43,117.33,16.26]
[1644204578265,23.945,117.44,117.34,18.81672089]
[1644204578461,23.945,117.44,117.35,14.519]
[1644204578662,23.945,117.44,117.35,46.27582434]
[1644204578863,23.945,117.44,117.35,46.52582434]
[1644204579265,23.945,117.44,117.36,14.50697123]
[1644204579463,0.17996512,117.52,117.37,14.518]
[1644204579665,6.29309,117.5,117.37,10.26]
[1644204579865,14.517,117.49,117.34,6.60922381]
[1644204580065,14.517,117.49,117.32,2.35122381]
[1644204580066,16.98636737,117.49,117.32,2.35122381]
[1644204580268,90.92356737,117.49,117.3,2.77722381]
[1644204580470,47.44678148,117.47,117.3,0.426]
[1644204580672,35.2238169,117.45,117.3,0.426]
[1644204580872,45.4838169,117.45,117.3,0.426]
[1644204581172,35.85108062,117.43,117.31,2.16357196]
[1644204581373,35.85108062,117.43,117.31,3.32798201]
[1644204581577,6.29309,117.42,117.31,9.32798201]
[1644204581779,44.19424405,117.41,117.31,10.26]
[1644204582577,44.19424405,117.41,117.31,10.51]
[1644204582780,50.48733405,117.41,117.31,10.26]
[1644204582980,56.73733405,117.41,117.3,0.426]
[1644204583180,4.26,117.4,117.3,0.426]
[1644204583381,23.38209,117.4,117.3,0.426]
[1644204583582,10.26,117.39,117.26,2.35122381]
[1644204583784,10.26,117.39,117.24,9.368]
[1644204583785,4.261,117.38,117.25,2.35122381]
[1644204583986,4.261,117.38,117.24,11.71922381]
[1644204584187,48.69348763,117.37,117.24,11.71922381]
[1644204584388,41.65428667,117.35,117.24,11.71922381]
[1644204584789,6.29309,117.34,117.24,11.71922381]
[1644204585187,41.65428667,117.35,117.24,11.71922381]
[1644204585389,37.71395068,117.33,117.24,11.71922381]
[1644204585588,37.71395068,117.33,117.24,9.368]
[1644204586189,6.29309,117.32,117.24,9.368]
[1644204586788,37.71395068,117.33,117.24,9.368]
[1644204586990,37.71395068,117.33,117.24,17.71922381]
[1644204587992,37.71395068,117.33,117.24,15.368]
[1644204588493,48.301,117.38,117.25,1.44711723]
[1644204588692,48.301,117.38,117.25,17.70711723]
[1644204588893,48.301,117.38,117.26,14.81336166]
[1644204589093,48.301,117.38,117.26,31.68558547]
[1644204589294,48.301,117.38,117.26,29.58436166]
[1644204589495,48.301,117.38,117.26,14.521]
[1644204589794,6.29309,117.37,117.26,4.261]
[1644204589996,16.55309,117.37,117.26,4.261]
[1644204590197,41.96518733,117.35,117.26,4.261]
[1644204590395,52.22518733,117.35,117.26,4.261]
[1644204590595,58.47518733,117.35,117.26,4.261]
[1644204590997,74.261,117.34,117.24,9.368]
[1644204591197,56.9362438,117.33,117.17,7.75988931]
[1644204591400,4.264,117.32,117.15,3.49788931]
[1644204591596,46.42240694,117.31,117.15,3.49788931]
[1644204591796,46.67240694,117.31,117.16,2.17021069]
[1644204592395,46.67240694,117.31,117.14,3.49788931]
[1644204592599,4.265,117.3,117.14,3.49788931]
[1644204592799,16.93857196,117.3,117.14,3.49788931]
[1644204593097,2.16357196,117.29,117.13,3.49788931]
[1644204593397,57.56443144,117.28,117.13,3.49788931]
[1644204593598,63.56443144,117.28,117.13,14.55804123]
[1644204593898,63.81443144,117.28,117.13,8.55804123]
[1644204594097,63.81443144,117.28,117.13,11.06015192]
[1644204594498,63.81443144,117.28,117.13,6.0]
[1644204594697,65.9780034,117.28,117.12,3.49788931]
[1644204594898,55.4680034,117.28,117.12,3.49788931]
[1644204595200,53.30443144,117.28,117.1,7.76388931]
[1644204595398,47.41381849,117.26,117.1,13.76388931]
[1644204595598,63.67381849,117.26,117.1,19.1338656]
[1644204595901,65.83739045,117.26,117.1,7.76388931]
[1644204596099,65.83739045,117.26,117.1,4.266]
[1644204596297,66.08739045,117.26,117.1,4.266]
[1644204596497,66.08739045,117.26,117.11,25.15070279]
[1644204596698,4.266,117.25,117.11,25.15070279]
[1644204596901,44.64496896,117.24,117.11,25.15070279]
[1644204597098,44.64496896,117.24,117.12,4.267]
[1644204597297,27.58312704,117.24,117.13,6.77964645]
[1644204597499,27.58312704,117.24,117.14,4.266]
[1644204597698,27.58312704,117.24,117.15,41.87681903]
[1644204597901,27.58312704,117.24,117.14,6.0]
[1644204598098,27.58312704,117.24,117.14,6.25]
[1644204598399,26.8521,117.3,117.14,6.25]
[1644204598400,22.27132363,117.44,117.23,128.23]
[1644204598598,12.9717,117.54,117.52,0.00753527]
[1644204598599,4.266,117.54,117.52,0.00753527]
[1644204598799,6.29309,117.53,117.52,0.00753527]
[1644204599099,0.35993024,117.54,117.52,0.00753527]
[1644204599301,39.7882554,117.53,117.52,0.00753527]
[1644204599500,15.47807052,117.53,117.52,0.00753527]
[1644204599999,121.0,117.52,117.44,14.513]
[1644204600199,121.0,117.52,117.43,0.00515687]
[1644204600600,34.55300576,117.51,117.43,0.00515687]
[1644204601002,34.55300576,117.51,117.44,10.26]
[1644204601198,34.55300576,117.51,117.44,10.51]
[1644204601399,34.55300576,117.51,117.44,16.51]
[1644204601799,34.55300576,117.51,117.43,0.00515687]
[1644204602200,4.256,117.5,117.43,0.00515687]
[1644204602400,92.167,117.5,117.43,0.00515687]
[1644204602599,98.167,117.5,117.43,0.00515687]
[1644204602799,45.18368878,117.49,117.43,0.00515687]
[1644204603202,51.43368878,117.49,117.43,0.00515687]
[1644204603600,45.43368878,117.49,117.43,0.00515687]
[1644204604003,41.17768878,117.49,117.43,0.00515687]
[1644204604401,5.2418,117.48,117.43,0.00515687]
[1644204604601,47.05559374,117.47,117.43,0.00515687]
[1644204604802,63.85868374,117.47,117.43,0.00515687]
[1644204605003,87.66093983,117.47,117.3,3.49788931]
[1644204605201,89.82451179,117.47,117.32,10.0]
[1644204605604,87.66093983,117.47,117.28,4.256]
[1644204605804,87.66093983,117.47,117.28,10.256]
[1644204606002,87.66093983,117.47,117.28,4.256]
[1644204606202,87.66093983,117.47,117.28,10.256]
[1644204606405,87.66093983,117.47,117.28,4.256]
[1644204606607,83.52038972,117.49,117.26,9.65973766]
[1644204606804,31.04390578,117.52,117.24,3.49788931]
[1644204606805,128.23,117.44,117.24,3.49788931]
[1644204607008,10.26,117.43,117.23,2.16357196]
[1644204607204,4.261,117.42,117.24,2.16357196]
[1644204607404,46.30116853,117.41,117.24,2.16357196]
[1644204607605,4.261,117.4,117.24,2.16357196]
[1644204607806,10.26,117.39,117.24,2.16357196]
[1644204608005,4.261,117.38,117.24,2.16357196]
[1644204608207,10.26,117.37,117.2,2.16357196]
[1644204608407,45.57176145,117.35,117.2,8.43762196]
[1644204608605,10.26,117.34,117.21,8.43708196]
[1644204608806,10.51,117.34,117.21,8.43708196]
[1644204609411,48.31898436,117.33,117.21,8.43708196]
[1644204609609,10.26,117.32,117.21,6.27351]
[1644204609912,14.523,117.32,117.21,6.27351]
[1644204610108,14.773,117.32,117.22,2.16357196]
[1644204610313,10.26,117.32,117.23,6.27244]
[1644204610513,46.28930895,117.31,117.23,6.27244]
[1644204610913,56.54930895,117.31,117.23,6.27244]
[1644204611809,56.54930895,117.31,117.16,3.49788931]
[1644204612010,4.264,117.3,117.14,3.49788931]
[1644204612210,10.26,117.29,117.14,9.49788931]
[1644204612411,10.26,117.28,117.14,9.49788931]
[1644204612612,34.50923308,117.27,117.14,12.27726]
[1644204612812,10.26,117.26,117.14,12.27726]
[1644204613012,35.85815749,117.25,117.14,11.77726]
[1644204613212,35.85815749,117.25,117.14,5.5]
[1644204613414,36.10815749,117.25,117.13,3.49788931]
[1644204613614,36.10815749,117.25,117.13,3.74788931]
[1644204613812,42.10815749,117.25,117.13,3.74788931]
[1644204614014,52.36815749,117.25,117.13,3.74788931]
[1644204614613,52.36815749,117.25,117.13,3.49788931]
[1644204614818,52.36815749,117.25,117.13,6.0]
[1644204615013,52.36815749,117.25,117.11,9.49788931]
[1644204615714,52.36815749,117.25,117.12,39.79593385]
[1644204616016,46.36815749,117.25,117.12,39.79593385]
[1644204616213,46.36815749,117.25,117.12,46.04593385]
[1644204616413,46.36815749,117.25,117.12,6.25]
[1644204616714,6.29309,117.24,117.13,2.16357196]
[1644204617114,6.29309,117.24,117.13,21.05589011]
[1644204617314,255.8569,117.34,117.28,7.81306201]
[1644204617513,255.8569,117.34,117.14,29.04328218]
[1644204617514,6.29309,117.33,117.15,5.78966395]
[1644204617713,6.29309,117.33,117.16,42.6422]
[1644204617916,6.29309,117.33,117.18,3.49788931]
[1644204618115,37.36093065,117.32,117.19,26.55655783]
[1644204618314,6.29309,117.31,117.19,26.80655783]
[1644204618516,43.68100304,117.3,117.19,34.97012979]
[1644204618715,45.17040699,117.28,117.2,2.16357196]
[1644204618915,6.29309,117.27,117.21,14.523]
[1644204619115,6.29309,117.27,117.21,20.523]
[1644204619415,6.29309,117.27,117.17,10.26]
[1644204619614,6.29309,117.27,117.19,0.25]
[1644204620014,6.29309,117.27,117.15,75.793825]
[1644204620015,34.76610026,117.26,117.15,75.793825]
[1644204620215,36.16482207,117.24,117.15,70.28501573]
[1644204620415,10.26,117.33,117.15,70.28501573]
[1644204620416,34.42252333,117.22,117.15,68.95069838]
[1644204620617,6.29309,117.21,117.15,68.95069838]
[1644204621018,14.524,117.33,117.17,6.34515855]
[1644204621216,6.29309,117.32,117.17,12.59515855]
[1644204621619,6.54309,117.32,117.17,12.59515855]
[1644204621817,6.54309,117.32,117.17,6.25]
[1644204622417,4.514,117.32,117.17,6.25]
[1644204622819,48.66155247,117.31,117.17,0.25]
[1644204623219,71.88655247,117.31,117.14,13.49788931]
[1644204623421,4.265,117.3,117.14,10.0]
[1644204623621,16.55309,117.29,117.14,10.0]
[1644204623819,16.55309,117.29,117.15,48.98585814]
[1644204623820,44.29089897,117.28,117.15,48.98585814]
[1644204624219,44.54089897,117.28,117.15,48.98585814]
[1644204624421,50.83398897,117.28,117.15,59.61968618]
[1644204624622,50.83398897,117.28,117.15,59.86968618]
[1644204624821,50.83398897,117.28,117.15,62.03325814]
[1644204625249,3.8751217,117.23,117.15,65.86968618]
[1644204625447,43.77991708,117.23,117.15,65.86968618]
[1644204625647,43.77991708,117.23,117.15,67.78325814]
[1644204625849,0.35786315,134.76,117.15,65.61968618]
[1644204626049,10.26,117.38,117.16,94.0]
[1644204626249,4.4490705,117.35,117.16,96.16357196]
[1644204626454,14.524,117.34,117.15,12.7974]
[1644204626648,0.31910283,117.32,117.12,22.92072151]
[1644204626848,14.525,117.31,117.12,16.29818931]
[1644204627048,12.8028,117.29,117.13,46.09196867]
[1644204627248,14.525,117.28,117.12,2.16357196]
[1644204627649,14.775,117.28,117.13,2.16357196]
[1644204628454,37.65386322,117.27,117.1,2.16357196]
[1644204628649,37.65386322,117.27,117.07,49.92870746]
[1644204628650,0.32211746,117.23,117.07,3.49788931]
[1644204628853,0.32211746,117.23,117.05,2.16357196]
[1644204628854,14.528,117.22,117.05,2.16357196]
[1644204629051,20.82109,117.22,117.03,0.22624176]
[1644204629250,41.80202644,117.21,117.03,0.22624176]
[1644204629449,14.529,117.2,117.03,0.22624176]
[1644204629649,52.83961574,117.19,117.03,2.38981372]
[1644204629849,53.08961574,117.19,117.04,59.48549697]
[1644204630050,40.27481574,117.19,117.04,59.48549697]
[1644204630350,40.02481574,117.19,117.06,35.5051331]
[1644204630750,40.02481574,117.19,117.07,2.16357196]
[1644204630951,40.02481574,117.19,117.08,54.57684784]
[1644204631354,4.268,117.25,117.09,26.22144566]
[1644204631553,82.8941,117.26,117.1,4.267]
[1644204631752,82.8941,117.26,117.1,2.41357196]
[1644204631953,16.26,117.26,117.1,35.46472784]
[1644204632152,6.0,117.26,117.11,14.96557196]
[1644204632352,42.57079479,117.25,117.12,56.21913872]
[1644204632551,48.57079479,117.25,117.12,54.11671068]
[1644204632752,48.57079479,117.25,117.12,43.85671068]
[1644204632952,48.57079479,117.25,117.08,24.95472784]
[1644204633153,14.527,117.24,117.08,2.16357196]
[1644204633351,14.527,117.24,117.06,10.26]
[1644204633352,10.26,117.24,117.06,10.26]
[1644204633955,44.8457346,117.23,117.07,35.01594557]
[1644204634154,57.6529346,117.23,117.07,51.27594557]
[1644204634353,57.6529346,117.23,117.08,20.22944566]
[1644204634555,57.6529346,117.23,117.09,47.81457845]
[1644204634755,57.6529346,117.23,117.09,48.06457845]
[1644204634954,44.8457346,117.23,117.09,13.0545]
[1644204635155,67.9125346,117.23,117.08,4.268]
[1644204635357,67.9125346,117.23,117.06,9.92846127]
[1644204635556,67.9125346,117.23,117.06,6.43057196]
[1644204635758,78.9255346,117.23,117.06,6.43057196]
[1644204636056,78.9255346,117.23,117.07,46.78608042]
[1644204636255,79.1755346,117.23,117.09,43.16417556]
[1644204636458,79.1755346,117.23,117.11,35.7531937]
[1644204636956,79.1755346,117.23,117.07,12.8069]
[1644204637360,79.1755346,117.23,117.08,3.16264486]
[1644204637557,4.267,117.22,117.08,3.16264486]
[1644204637756,23.0701,117.21,117.05,3.49788931]
[1644204637958,4.268,117.2,117.04,3.16264486]
[1644204638257,47.0064018,117.19,117.05,47.24335809]
[1644204638657,47.0064018,117.19,117.06,3.16264486]
[1644204638858,42.0,117.18,117.02,39.498517]
[1644204639068,42.0,117.18,116.97,35.46038158]
[1644204639069,90.0,117.17,117.04,6.75361339]
[1644204639259,10.26,117.16,117.03,3.6206317]
[1644204639460,4.269,117.15,117.0,3.52228008]
[1644204639663,2.49,117.12,116.97,3.52228008]
[1644204639861,5.90345024,117.1,116.97,3.52228008]
[1644204640060,10.26,117.09,116.97,3.52228008]
[1644204640259,20.77198696,117.08,116.97,36.57377686]
[1644204640460,31.03198696,117.08,116.98,3.17170581]
[1644204640659,31.28198696,117.08,116.99,41.27047288]
[1644204641061,31.03198696,117.08,116.99,41.27047288]
[1644204641562,10.26,117.08,116.99,41.27047288]
[1644204641761,10.26,117.11,116.99,41.27047288]
[1644204641978,12.8173,117.14,116.99,41.27047288]
[1644204642162,10.26,117.14,117.0,14.97827196]
[1644204642362,24.8077,117.15,117.0,17.83466444]
[1644204642561,10.26,117.2,117.01,60.41178876]
[1644204642762,15.282,117.23,117.02,2.85639248]
[1644204642962,6.29309,117.22,117.03,14.528]
[1644204643163,6.29309,117.22,117.04,2.85639248]
[1644204643363,11.013,117.23,117.05,14.528]
[1644204643563,26.21374812,117.21,117.07,12.8068]
[1644204643761,26.21374812,117.21,117.08,46.89038674]
[1644204644164,26.21374812,117.21,117.08,6.0]
[1644204644362,36.47374812,117.21,117.06,4.268]
[1644204644563,36.47374812,117.21,117.06,6.0]
[1644204644762,4.268,117.2,117.03,12.8096]
[1644204644963,10.26,117.19,117.03,12.8096]
[1644204645163,2.6273255,117.18,117.04,49.40781866]
[1644204645363,12.8873255,117.18,117.04,49.40781866]
[1644204645564,18.8873255,117.18,117.04,46.31873012]
[1644204646466,18.8873255,117.18,117.06,48.53309048]
[1644204647464,8.6273255,117.18,117.06,48.78309048]
[1644204647665,8.6273255,117.18,117.06,54.78309048]
[1644204647864,2.6273255,117.18,117.07,12.8069]
[1644204648065,2.6273255,117.18,117.06,48.78309048]
[1644204648266,2.6273255,117.18,117.02,10.26]
[1644204648465,2.6273255,117.18,117.01,14.529]
[1644204648674,2.8773255,117.18,117.01,20.529]
[1644204648868,2.8773255,117.18,117.02,2.85158079]
[1644204649066,2.8773255,117.18,117.02,8.85158079]
[1644204649273,8.8773255,117.18,117.03,36.64356936]
[1644204649667,8.8773255,117.18,117.05,39.23049776]
[1644204650167,8.8773255,117.18,117.05,39.48049776]
[1644204650371,19.1373255,117.18,117.05,39.48049776]
[1644204650575,8.8773255,117.18,117.05,39.48049776]
[1644204650768,2.8773255,117.18,117.07,35.86209277]
[1644204650968,0.25,117.18,117.08,12.8058]
[1644204651168,53.1706,117.22,117.08,18.8058]
[1644204651373,53.1706,117.22,117.08,13.0558]
[1644204651972,21.52731459,117.21,117.09,40.92450353]
[1644204652570,21.77731459,117.21,117.09,40.92450353]
[1644204652970,21.52731459,117.21,117.1,12.8038]
[1644204653171,22.9904,117.22,117.11,47.14759499]
[1644204654175,23.08302353,117.21,117.11,47.14759499]
[1644204654375,23.08302353,117.21,117.11,47.39759499]
[1644204654574,22.9904,117.22,117.11,47.39759499]
[1644204654874,89.00997601,117.39,117.12,0.31078994]
[1644204654875,4.267,117.29,117.12,0.31078994]
[1644204655073,4.45063631,117.3,117.13,10.26]
[1644204655280,4.45063631,117.3,117.13,23.87948585]
[1644204655573,20.95500878,117.32,117.15,46.04006502]
[1644204655774,20.95500878,117.32,117.15,56.55006502]
[1644204655976,33.75230878,117.32,117.17,12.796]
[1644204656174,39.75230878,117.32,117.17,6.0]
[1644204656374,10.26,117.31,117.15,10.51]
[1644204656773,10.51,117.31,117.15,10.51]
[1644204657172,10.51,117.31,117.16,37.02709108]
[1644204657173,7.88606484,117.3,117.16,37.02709108]
[1644204657574,7.88606484,117.3,117.16,43.27709108]
[1644204657974,7.88606484,117.3,117.16,37.27709108]
[1644204658575,7.88606484,117.3,117.16,43.02709108]
[1644204658776,7.88606484,117.3,117.16,37.02709108]
[1644204659276,7.88606484,117.3,117.15,10.26]
[1644204659479,2.16357196,117.29,117.15,6.0]
[1644204659676,2.16357196,117.29,117.13,6.0]
[1644204659877,29.44496484,117.3,117.14,7.12382624]
[1644204660078,29.44496484,117.3,117.14,10.265]
[1644204660276,35.44496484,117.3,117.15,38.70929887]
[1644204660476,35.44496484,117.3,117.17,12.796]
[1644204660676,35.44496484,117.3,117.17,18.796]
[1644204660677,22.64606484,117.3,117.17,18.796]
[1644204660879,16.64606484,117.3,117.17,6.0]
[1644204661278,16.64606484,117.3,117.15,16.26]
[1644204661678,16.64606484,117.3,117.16,38.27086746]
[1644204662082,22.64606484,117.3,117.16,44.52086746]
[1644204662281,12.38606484,117.3,117.16,44.52086746]
[1644204663282,25.18436484,117.3,117.17,12.7963]
[1644204663481,10.26,117.29,117.16,6.0]
[1644204663682,10.26,117.29,117.15,6.0]
[1644204663881,10.51,117.29,117.12,16.26]
[1644204664086,10.51,117.29,117.13,4.266]
[1644204664282,20.95500878,117.28,117.14,41.68226846]
[1644204664685,20.95500878,117.28,117.14,60.73006846]
[1644204664982,20.95500878,117.28,117.16,38.49696314]
[1644204665281,20.95500878,117.28,117.16,44.49696314]
[1644204665781,20.95500878,117.28,117.16,38.49696314]
[1644204665981,20.95500878,117.28,117.14,12.7988]
[1644204666181,31.21500878,117.28,117.14,6.0]
[1644204666382,3.8886142,117.27,117.13,1.17005775]
[1644204666583,3.8886142,117.27,117.13,7.17005775]
[1644204666782,4.1386142,117.27,117.13,1.17005775]
[1644204666982,6.38606484,117.25,117.14,42.40390295]
[1644204667185,6.38606484,117.25,117.14,1.17005775]
[1644204667484,6.38606484,117.25,117.13,7.17005775]
[1644204667485,6.63606484,117.25,117.13,7.17005775]
[1644204667683,12.63606484,117.25,117.13,1.17005775]
[1644204667885,6.63606484,117.25,117.12,1.17005775]
[1644204668084,12.63606484,117.25,117.11,1.17005775]
[1644204668287,10.26,117.24,117.11,1.17005775]
[1644204668787,12.8049,117.23,117.11,1.17005775]
[1644204669189,20.95500878,117.22,117.11,1.17005775]
[1644204669385,20.95500878,117.22,117.09,1.17005775]
[1644204669585,21.20500878,117.22,117.09,1.17005775]
[1644204669791,23.0672,117.21,117.09,1.17005775]
[1644204669988,27.3352,117.21,117.08,1.17005775]
[1644204670187,27.5852,117.21,117.08,1.17005775]
[1644204670592,6.38606484,117.2,117.08,46.25678743]
[1644204670793,6.63606484,117.2,117.09,1.17005775]
[1644204670993,6.38606484,117.2,117.11,1.17005775]
[1644204671191,6.38606484,117.2,117.12,39.7501442]
[1644204671400,6.38606484,117.2,117.12,1.17005775]
[1644204671804,6.38606484,117.2,117.13,1.17005775]
[1644204672307,12.38606484,117.2,117.14,1.17005775]
[1644204672502,6.38606484,117.2,117.14,1.17005775]
[1644204672702,23.0625,117.25,117.14,42.07260684]
[1644204672904,123.8442,117.26,117.15,1.17005775]
[1644204673204,3.8886142,117.27,117.15,1.42005775]
[1644204673503,3.8886142,117.27,117.17,1.17005775]
[1644204673703,28.51603042,117.27,117.18,42.47917576]
[1644204673904,28.51603042,117.27,117.18,1.17005775]
[1644204674518,3.8886142,117.27,117.16,1.17005775]
[1644204674718,5.65530676,117.35,117.21,0.32132586]
[1644204674926,4.265,117.43,117.25,0.31709406]
[1644204674927,1.20556938,117.42,117.25,0.31709406]
[1644204675119,69.4935,117.46,117.26,15.69105775]
[1644204675323,69.4935,117.46,117.27,11.43005775]
[1644204675519,69.4935,117.46,117.28,4.26]
[1644204675718,27.8918833,117.45,117.28,87.1686768]
[1644204675927,27.8918833,117.45,117.29,11.0790922]
[1644204676122,33.8918833,117.45,117.3,39.64925189]
[1644204676321,33.8918833,117.45,117.3,59.51864638]
[1644204676520,12.7823,117.44,117.31,47.19579372]
[1644204676721,3.34639923,117.43,117.32,36.73083531]
[1644204677020,3.34639923,117.43,117.32,86.51818324]
[1644204677220,3.34639923,117.43,117.33,29.90973256]
[1644204677423,3.34639923,117.43,117.33,19.87761537]
[1644204677622,3.34639923,117.43,117.34,19.87761537]
[1644204677823,3.34639923,117.43,117.34,20.12761537]
[1644204678024,3.34639923,117.43,117.34,26.12761537]
[1644204678430,3.34639923,117.43,117.34,46.07068127]
[1644204678830,3.34639923,117.43,117.3,29.9209487]
[1644204679033,3.34639923,117.43,117.3,19.6609487]
[1644204679229,10.26,117.42,117.23,15.69005775]
[1644204679428,14.521,117.42,117.23,15.69005775]
[1644204679629,21.0668326,117.41,117.24,35.44501596]
[1644204679829,12.7857,117.4,117.24,96.87501596]
[1644204680030,5.05976514,117.39,117.24,96.87501596]
[1644204680228,5.30976514,117.39,117.24,114.10557455]
[1644204680630,5.30976514,117.39,117.24,113.85557455]
[1644204680830,5.30976514,117.39,117.24,62.68557455]
[1644204681038,18.09696514,117.39,117.24,16.26]
[1644204681230,28.35696514,117.39,117.24,6.0]
[1644204681433,28.35696514,117.39,117.21,4.261]
[1644204681633,4.261,117.38,117.21,4.261]
[1644204681831,42.6498,117.35,117.21,4.261]
[1644204682032,31.3268326,117.34,117.22,41.23688461]
[1644204682231,31.5768326,117.34,117.22,41.23688461]
[1644204682831,5.05976514,117.32,117.22,41.23688461]
[1644204683231,5.30976514,117.32,117.21,4.261]
[1644204683434,15.56976514,117.32,117.15,3.50220829]
[1644204683631,19.83376514,117.32,117.15,1.17005775]
[1644204683833,28.36456514,117.32,117.14,1.17005775]
[1644204684034,28.36456514,117.32,117.15,5.43505775]
[1644204684232,28.36456514,117.32,117.16,35.08771226]
[1644204684433,28.36456514,117.32,117.16,36.25777001]
[1644204684634,28.36456514,117.32,117.16,35.08771226]
[1644204686058,28.36456514,117.32,117.16,108.46238774]
[1644204686257,28.11456514,117.32,117.17,2.16357196]
[1644204686457,28.11456514,117.32,117.19,85.39720264]
[1644204686458,17.85456514,117.32,117.19,85.39720264]
[1644204686658,5.05976514,117.32,117.21,38.99410504]
[1644204686858,5.05976514,117.32,117.21,39.24410504]
[1644204687057,5.05976514,117.32,117.21,45.24410504]
[1644204687760,11.05976514,117.32,117.21,45.24410504]
[1644204687958,12.7918,117.34,117.21,45.24410504]
[1644204688159,12.7918,117.34,117.21,55.50410504]
[1644204688357,12.7918,117.34,117.21,106.67410504]
[1644204688559,164.2207,117.35,117.21,106.67410504]
[1644204688759,12.7897,117.36,117.21,106.67410504]
[1644204689060,21.38568293,117.35,117.21,125.04235248]
[1644204689358,102.4174,117.38,117.22,4.263]
[1644204689559,102.4174,117.38,117.24,51.17]
[1644204689759,102.4174,117.38,117.24,61.68]
[1644204689961,102.4174,117.38,117.24,67.68]
[1644204690159,22.45682289,117.37,117.25,43.30248882]
[1644204690360,22.70682289,117.37,117.25,43.55248882]
[1644204690560,22.70682289,117.37,117.25,49.55248882]
[1644204691163,22.70682289,117.37,117.25,43.55248882]
[1644204691861,22.70682289,117.37,117.25,43.30248882]
[1644204692161,35.49562289,117.37,117.25,43.30248882]
[1644204692863,35.49562289,117.37,117.22,26.46467548]
[1644204693062,35.49562289,117.37,117.22,32.71467548]
[1644204693463,35.49562289,117.37,117.22,16.51]
[1644204694062,35.49562289,117.37,117.23,42.7180718]
[1644204694464,35.49562289,117.37,117.23,48.7180718]
[1644204694664,35.24562289,117.37,117.23,48.9680718]
[1644204694864,35.24562289,117.37,117.23,110.3980718]
[1644204695267,35.24562289,117.37,117.23,126.60274728]
[1644204695468,35.24562289,117.37,117.23,75.43274728]
[1644204696067,35.24562289,117.37,117.23,126.60274728]
[1644204696267,35.24562289,117.37,117.24,2.16357196]
[1644204696466,35.24562289,117.37,117.25,86.4259636]
[1644204696666,35.24562289,117.37,117.25,92.4259636]
[1644204696868,22.45682289,117.37,117.25,92.6759636]
[1644204697868,22.70682289,117.37,117.25,41.2559636]
[1644204698170,35.49502289,117.37,117.25,35.2559636]
[1644204698369,35.49502289,117.37,117.25,45.5159636]
[1644204699676,35.24502289,117.37,117.25,45.5159636]
[1644204700073,22.45682289,117.37,117.25,96.6859636]
[1644204700272,22.45682289,117.37,117.25,96.9359636]
[1644204701073,92.3587,117.39,117.25,115.7217636]
[1644204701279,92.3587,117.39,117.25,131.92643908]
[1644204701877,12.7858,117.39,117.25,51.5159636]
[1644204702177,25.52730499,117.38,117.25,35.2559636]
[1644204702574,25.52730499,117.38,117.25,92.4259636]
[1644204703178,25.77730499,117.38,117.25,93.84602135]
[1644204703375,25.77730499,117.38,117.26,10.26]
[1644204703577,25.77730499,117.38,117.27,39.18884858]
[1644204703776,25.77730499,117.38,117.27,39.43884858]